bitfinex/quotes_SOLUSD_20241008
["timestamp","ask_amount","ask_price","bid_price","bid_amount"]
[1728355081074,6.9088,144.75,144.71,6.9102]
[1728355081360,6.9097,144.73,144.7,16.0457]
[1728355086639,6.88412767,144.73,144.7,16.0457]
[1728355089057,0.12549,144.72,144.66,17.2812]
[1728355089357,6.911,144.7,144.66,17.2812]
[1728355090187,6.911,144.7,144.66,24.1938]
[1728355092445,6.911,144.7,144.66,17.2812]
[1728355093570,6.9126,144.67,144.64,16.3819]
[1728355093886,0.12549,144.73,144.64,16.3819]
[1728355094073,6.9118,144.68,144.64,23.2956]
[1728355094486,6.9123,144.67,144.64,16.3819]
[1728355095474,6.9128,144.66,144.64,16.3819]
[1728355095781,6.9134,144.65,144.61,36.1260497]
[1728355095981,24.027864,144.68,144.61,36.1260497]
[1728355096189,6.9129,144.66,144.62,8.29709364]
[1728355096662,6.9129,144.66,144.62,6.9144]
[1728355097311,6.9123,144.67,144.63,1.38264591]
[1728355097867,6.9123,144.67,144.62,6.9144]
[1728355099496,6.9127,144.66,144.62,6.9144]
[1728355102293,6.9124,144.67,144.62,6.9144]
[1728355102672,6.9124,144.67,144.61,29.2110497]
[1728355102975,6.9124,144.67,144.63,6.9141]
[1728355106488,20.0,144.71,144.64,1.38259855]
[1728355106667,7.21002885,144.72,144.66,6.9122]
[1728355106993,17.2717,144.75,144.68,6.9113]
[1728355107196,6.9094,144.73,144.69,8.29325292]
[1728355108287,6.9094,144.73,144.69,6.9112]
[1728355108472,6.9094,144.73,144.68,6.9117]
[1728355112497,6.0638,144.77,144.68,17.2788]
[1728355112498,6.9089,144.74,144.68,17.2788]
[1728355112705,6.9089,144.74,144.7,6.9108]
[1728355112874,6.9089,144.74,144.69,6.9112]
[1728355113073,6.9095,144.73,144.69,6.9112]
[1728355116904,24.027864,144.77,144.69,6.9112]
[1728355117213,6.9091,144.74,144.68,17.2788]
[1728355117501,6.9091,144.74,144.7,6.9107]
[1728355120382,6.9094,144.73,144.69,6.9112]
[1728355121694,6.9094,144.73,144.68,24.1904]
[1728355124100,6.9094,144.73,144.69,6.9112]
[1728355124791,6.909,144.74,144.7,8.2924756]
[1728355125099,6.909,144.74,144.7,6.9106]
[1728355125296,6.9087,144.75,144.71,6.9102]
[1728355126000,6.9087,144.75,144.7,17.2768]
[1728355126216,6.9087,144.75,144.7,24.1875]
[1728355128310,6.909,144.74,144.7,24.1875]
[1728355128490,6.9102,144.72,144.69,6.5961]
[1728355128685,17.2705,144.76,144.67,17.2798]
[1728355128892,6.9122,144.67,144.66,16.6432]
[1728355129192,6.9119,144.68,144.66,16.6432]
[1728355129395,6.9116,144.69,144.66,16.6432]
[1728355130405,0.25098,144.71,144.66,16.6432]
[1728355130602,6.9122,144.67,144.63,24.1991]
[1728355130909,6.9118,144.68,144.64,8.29619344]
[1728355131488,6.9118,144.68,144.64,6.9137]
[1728355131690,6.9114,144.69,144.64,6.9137]
[1728355132706,6.9109,144.7,144.66,6.9127]
[1728355134103,6.9109,144.7,144.64,12.8396497]
[1728355134312,6.9122,144.68,144.63,24.1991]
[1728355135285,6.9127,144.66,144.62,22.5682]
[1728355136403,6.9133,144.65,144.62,15.6536]
[1728355136703,43.776884,144.7,144.61,6.2823]
[1728355136704,0.25098,144.71,144.61,6.2823]
[1728355136896,44.027864,144.68,144.58,16.4221]
[1728355137087,6.9146,144.63,144.58,23.3385]
[1728355137285,6.915,144.62,144.58,16.4221]
[1728355137690,17.2811,144.67,144.58,16.4221]
[1728355137691,6.9142,144.63,144.58,23.3385]
[1728355138004,7.03829,144.66,144.61,6.9148]
[1728355138219,0.12549,144.67,144.6,12.8396497]
[1728355138385,6.9131,144.66,144.61,24.202]
[1728355138580,0.12549,144.67,144.61,24.202]
[1728355138802,0.12549,144.67,144.58,40.6295]
[1728355139106,24.027864,144.65,144.58,16.4221]
[1728355139282,6.9152,144.61,144.58,16.4221]
[1728355139696,24.027864,144.65,144.58,16.4221]
[1728355139895,6.9146,144.62,144.58,16.4221]
[1728355140306,6.9138,144.64,144.6,6.9154]
[1728355140503,6.9133,144.65,144.6,6.9154]
[1728355141089,6.9133,144.65,144.6,19.7550497]
[1728355141502,6.9133,144.65,144.61,1.38282963]
[1728355143213,6.9127,144.66,144.61,8.29782963]
[1728355143514,6.9133,144.65,144.61,6.915]
[1728355144203,6.9133,144.65,144.6,19.7550497]
[1728355144590,6.9137,144.64,144.6,6.9154]
[1728355144791,6.9137,144.64,144.59,24.2058]
[1728355145513,6.9142,144.63,144.59,24.2058]
[1728355146011,6.9147,144.62,144.59,17.2898]
[1728355146199,0.25098,144.61,144.53,18.8702497]
[1728355146390,6.9166,144.58,144.54,6.9184]
[1728355146590,0.25098,144.61,144.54,6.9184]
[1728355146591,6.9162,144.59,144.54,6.9184]
[1728355147338,6.9151,144.61,144.55,31.51745029]
[1728355147487,6.9151,144.61,144.57,6.9169]
[1728355152093,6.9151,144.61,144.56,6.9174]
[1728355152315,6.9161,144.59,144.55,24.2123]
[1728355152504,6.9166,144.58,144.54,6.9183]
[1728355152816,6.9161,144.59,144.55,6.9178]
[1728355153394,6.9157,144.6,144.55,6.9178]
[1728355154433,6.9169,144.58,144.54,17.2956]
[1728355158634,6.9169,144.58,144.54,24.2139]
[1728355162316,7.32925895,144.63,144.56,17.2933]
[1728355162523,20.0,144.63,144.56,17.2933]
[1728355162833,6.9147,144.62,144.58,6.9164]
[1728355163214,6.9143,144.63,144.59,6.9158]
[1728355163715,6.9143,144.63,144.59,8.2988326]
[1728355163916,6.9143,144.63,144.59,6.9158]
[1728355164630,0.12549,144.64,144.58,17.2908]
[1728355164859,6.9142,144.63,144.59,8.29904007]
[1728355165930,6.9142,144.63,144.59,6.916]
[1728355166333,6.9142,144.63,144.58,24.2072]
[1728355166833,6.9151,144.62,144.58,17.2908]
[1728355167929,6.9151,144.62,144.58,24.2073]
[1728355168343,0.25098,144.65,144.59,1.38299925]
[1728355168544,22.68350737,144.68,144.6,12.86465191]
[1728355168721,22.68350737,144.68,144.63,6.9141]
[1728355168722,6.9123,144.67,144.63,6.9141]
[1728355168925,6.9123,144.67,144.63,8.29675172]
[1728355169228,6.9119,144.68,144.63,8.29675172]
[1728355169618,80.87059881,144.72,144.63,8.29675172]
[1728355169937,6.9124,144.67,144.63,8.29675172]
[1728355173541,6.9124,144.67,144.63,6.9141]
[1728355173849,6.9124,144.67,144.63,8.29675241]
[1728355174146,7.03739,144.68,144.63,8.29675241]
[1728355174318,6.9119,144.68,144.63,8.29675241]
[1728355174524,6.9104,144.71,144.64,17.2835]
[1728355174745,17.2717,144.75,144.67,6.9122]
[1728355175053,6.9103,144.72,144.68,8.29394636]
[1728355175339,6.9103,144.72,144.68,6.9117]
[1728355175918,6.9103,144.72,144.66,17.2813]
[1728355176140,6.9107,144.71,144.66,24.1935]
[1728355176656,6.9107,144.71,144.66,17.2813]
[1728355176853,17.2717,144.75,144.66,17.2813]
[1728355177041,6.9104,144.71,144.66,24.1939]
[1728355177233,6.9115,144.69,144.64,26.9136]
[1728355177433,0.12549,144.73,144.64,20.0]
[1728355177627,6.9109,144.7,144.65,6.913]
[1728355177833,6.9114,144.69,144.65,6.913]
[1728355178955,6.9114,144.69,144.64,6.9135]
[1728355179134,6.9119,144.68,144.63,23.6729]
[1728355179550,6.9119,144.68,144.63,30.5869]
[1728355179933,6.9119,144.68,144.63,23.6729]
[1728355180133,6.9119,144.68,144.64,6.9136]
[1728355189158,6.9119,144.68,144.63,30.5869]
[1728355189451,17.39969,144.73,144.63,6.3877]
[1728355189452,0.25098,144.7,144.63,6.3877]
[1728355189657,6.913,144.66,144.63,6.3877]
[1728355189840,24.027864,144.7,144.63,6.3877]
[1728355190160,6.9123,144.67,144.63,13.3018]
[1728355190859,24.027864,144.7,144.64,1.38264131]
[1728355191065,6.9119,144.68,144.64,6.9136]
[1728355193236,6.9119,144.68,144.63,13.3017]
[1728355193440,6.9122,144.67,144.63,13.3017]
[1728355193658,24.027864,144.7,144.63,6.3877]
[1728355194759,6.9129,144.66,144.63,6.3877]
[1728355199361,6.9129,144.66,144.63,7.77035964]
[1728355199745,6.9129,144.66,144.63,6.3877]
[1728355200268,6.9129,144.66,144.63,7.77035647]
[1728355200562,6.9124,144.67,144.63,7.77035647]
[1728355201264,6.9124,144.67,144.63,6.3877]
[1728355201446,17.2812,144.67,144.59,17.2896]
[1728355201770,17.2812,144.67,144.58,22.7027]
[1728355201771,6.9151,144.61,144.58,22.7027]
[1728355202068,6.9148,144.62,144.58,22.7027]
[1728355202757,6.9143,144.63,144.58,29.6191]
[1728355203069,7.19887056,144.71,144.6,0.12549]
[1728355203241,7.19887056,144.71,144.65,6.9132]
[1728355203441,67.9108,144.74,144.65,6.9132]
[1728355203645,75.10744506,144.74,144.65,6.9132]
[1728355204349,44.027864,144.73,144.63,47.0304]
[1728355204555,6.9124,144.67,144.63,47.0304]
[1728355205969,44.027864,144.69,144.63,16.4682]
[1728355206143,6.9132,144.65,144.63,16.4682]
[1728355206561,24.027864,144.67,144.6,16.2584]
[1728355206767,6.9147,144.62,144.6,16.2584]
[1728355207377,6.9143,144.63,144.6,16.2584]
[1728355207569,24.027864,144.65,144.6,16.2584]
[1728355207767,6.9146,144.62,144.6,16.2584]
[1728355208263,6.9142,144.63,144.6,16.2584]
[1728355208441,0.25098,144.65,144.6,16.2584]
[1728355208648,6.9138,144.64,144.6,16.2584]
[1728355209894,6.9138,144.64,144.6,23.1738]
[1728355210578,0.25098,144.66,144.6,23.1738]
[1728355210749,6.9133,144.65,144.6,23.1738]
[1728355211773,0.25098,144.66,144.6,23.1738]
[1728355211972,6.9147,144.62,144.6,16.2584]
[1728355212489,6.9151,144.61,144.56,33.111]
[1728355212781,6.9151,144.61,144.56,40.0284]
[1728355213277,6.9161,144.59,144.56,15.8178]
[1728355214671,6.9166,144.58,144.56,15.8178]
[1728355215262,6.9162,144.59,144.56,15.8178]
[1728355218654,7.18889058,144.64,144.56,15.8178]
[1728355218872,6.9142,144.63,144.59,6.9159]
[1728355219072,6.9146,144.62,144.58,6.9164]
[1728355219377,6.9146,144.62,144.58,8.29946849]
[1728355219570,6.9143,144.63,144.58,6.9164]
[1728355219762,6.9143,144.63,144.59,6.9158]
[1728355219964,6.9143,144.63,144.58,6.9164]
[1728355220367,6.9143,144.63,144.59,1.38306532]
[1728355220566,6.9143,144.63,144.59,6.9159]
[1728355222681,6.9143,144.63,144.58,6.9164]
[1728355224787,6.9146,144.62,144.58,6.9164]
[1728355225084,6.9157,144.6,144.57,17.2917]
[1728355225285,6.9161,144.59,144.56,15.8178]
[1728355226678,20.25098,144.63,144.56,15.8178]
[1728355226879,6.9167,144.58,144.56,15.8178]
[1728355229463,6.9167,144.58,144.55,6.3458]
[1728355229979,6.9167,144.58,144.54,24.2139]
[1728355232077,24.027864,144.6,144.52,22.5029]
[1728355232280,6.917,144.57,144.53,8.30248644]
[1728355235468,6.9175,144.56,144.52,29.4222]
[1728355240586,6.9175,144.56,144.52,22.5029]
[1728355240786,6.9181,144.55,144.52,16.0286]
[1728355241688,6.9181,144.55,144.51,24.2188]
[1728355245394,0.12549,144.56,144.51,17.299]
[1728355245592,6.9185,144.54,144.51,17.299]
[1728355246687,17.2941,144.56,144.48,33.6105]
[1728355246888,20.25098,144.55,144.48,33.6105]
[1728355247094,6.9191,144.53,144.48,40.5315]
[1728355247503,20.25098,144.55,144.48,40.5315]
[1728355247705,6.9196,144.52,144.48,40.5315]
[1728355250798,0.12549,144.53,144.45,40.9947]
[1728355251100,0.12549,144.53,144.45,30.6112]
[1728355251101,0.12549,144.51,144.45,30.6112]
[1728355251908,6.9212,144.49,144.45,24.2292]
[1728355253703,6.9212,144.49,144.45,17.3066]
[1728355254286,6.9214,144.48,144.44,15.0228]
[1728355254492,23.902374,144.5,144.43,6.9237]
[1728355254696,0.12549,144.49,144.43,6.9237]
[1728355255407,6.9215,144.48,144.43,6.9237]
[1728355256703,6.9215,144.48,144.43,12.88057649]
[1728355256912,6.9215,144.48,144.44,8.30767449]
[1728355257509,23.8428,144.55,144.46,17.3054]
[1728355257710,6.547,144.55,144.47,14.26473135]
[1728355257909,6.9193,144.53,144.49,6.9207]
[1728355258886,6.9193,144.53,144.48,24.2241]
[1728355260405,6.9188,144.54,144.49,14.2646065]
[1728355260701,15.1635,144.57,144.51,6.9199]
[1728355260894,6.9179,144.56,144.51,8.30369188]
[1728355261093,6.9181,144.55,144.51,6.9199]
[1728355261292,6.9181,144.55,144.51,8.30369374]
[1728355262183,6.9176,144.56,144.52,6.9193]
[1728355262515,6.9176,144.56,144.51,19.80027649]
[1728355263413,6.9182,144.55,144.5,17.3004]
[1728355263706,6.9186,144.54,144.5,17.3004]
[1728355264883,0.12549,144.56,144.5,17.3004]
[1728355265110,0.12549,144.56,144.48,26.35077649]
[1728355265397,32.9556,144.55,144.47,17.3039]
[1728355265592,6.9204,144.5,144.47,17.3039]
[1728355267791,6.921,144.49,144.45,21.983]
[1728355268111,6.921,144.49,144.45,15.4427]
[1728355269287,0.12549,144.51,144.44,17.3078]
[1728355269505,6.9209,144.49,144.45,1.38446276]
[1728355269813,6.9209,144.49,144.45,21.18763925]
[1728355270000,6.9209,144.49,144.45,19.80317649]
[1728355270689,6.9209,144.49,144.45,21.18752925]
[1728355270891,6.9209,144.49,144.45,19.80317649]
[1728355271199,0.12549,144.49,144.45,6.9226]
[1728355271401,6.9199,144.51,144.46,8.30655267]
[1728355271589,23.902374,144.53,144.47,6.9214]
[1728355271793,20.0,144.52,144.47,19.80197649]
[1728355272196,20.0,144.52,144.47,36.31317649]
[1728355272696,6.92,144.51,144.47,36.31317649]
[1728355272909,6.92,144.51,144.47,37.69729421]
[1728355273715,6.92,144.51,144.47,36.31317649]
[1728355274798,6.92,144.51,144.47,37.69729875]
[1728355274997,6.92,144.51,144.47,37.69729884]
[1728355276696,23.902374,144.53,144.47,37.69729884]
[1728355276697,17.2944,144.56,144.47,30.77589884]
[1728355276903,6.9191,144.53,144.48,18.68676007]
[1728355277443,6.9191,144.53,144.49,6.9208]
[1728355277807,6.9191,144.53,144.48,24.2241]
[1728355278507,6.9191,144.53,144.49,6.9208]
[1728355280008,20.25098,144.55,144.48,17.3028]
[1728355280211,6.9202,144.51,144.47,29.39177649]
[1728355280823,6.9202,144.51,144.47,16.5112]
[1728355289106,6.9202,144.51,144.47,23.4329]
[1728355293426,6.9195,144.52,144.48,8.30535641]
[1728355295527,6.9195,144.52,144.48,6.9213]
[1728355295913,6.9199,144.51,144.47,53.61747649]
[1728355296522,6.9205,144.5,144.47,33.8152]
[1728355303129,6.9205,144.5,144.47,46.69577649]
[1728355303739,6.9205,144.5,144.47,33.8152]
[1728355308634,0.12549,144.49,144.43,23.0947]
[1728355309422,24.027864,144.5,144.43,23.0947]
[1728355309946,0.12549,144.5,144.43,23.0947]
[1728355310142,6.9226,144.46,144.43,16.6403]
[1728355310458,0.12549,144.47,144.43,16.6403]
[1728355310626,6.9236,144.44,144.39,41.62547649]
[1728355311124,6.9237,144.43,144.39,41.62547649]
[1728355311319,6.9237,144.43,144.39,28.7449]
[1728355313247,6.9237,144.43,144.39,41.62547649]
[1728355314155,6.9234,144.44,144.39,41.62547649]
[1728355314939,6.9234,144.44,144.4,8.30992828]
[1728355316252,6.9234,144.44,144.4,6.9251]
[1728355317252,6.9234,144.44,144.39,28.7449]
[1728355317432,6.9234,144.44,144.39,41.62547649]
[1728355320635,6.9243,144.42,144.39,21.8194]
[1728355321236,6.9247,144.41,144.39,21.8194]
[1728355321432,6.9258,144.39,144.36,15.3981]
[1728355321955,6.9266,144.37,144.34,6.1782]
[1728355323140,17.311,144.42,144.32,32.7203]
[1728355323347,6.9275,144.36,144.32,39.6491]
[1728355323527,6.9275,144.36,144.32,41.03463727]
[1728355323930,6.9275,144.36,144.32,39.6491]
[1728355324755,6.9275,144.36,144.33,1.38554273]
[1728355325061,6.9275,144.36,144.32,39.6491]
[1728355329158,6.9253,144.4,144.35,19.80777649]
[1728355329352,6.9253,144.4,144.36,1.38525311]
[1728355330637,20.0,144.42,144.37,6.9266]
[1728355330863,26.9243,144.42,144.38,1.38508496]
[1728355331152,6.9243,144.42,144.38,1.38508496]
[1728355331357,6.9243,144.42,144.37,6.9266]
[1728355332741,6.9243,144.42,144.37,8.31168925]
[1728355333347,6.9243,144.42,144.37,6.9266]
[1728355333552,6.9243,144.42,144.37,8.31166682]
[1728355333868,6.9243,144.42,144.37,6.9266]
[1728355334157,44.027864,144.43,144.32,15.3981]
[1728355334340,6.9265,144.38,144.33,24.2491]
[1728355334545,6.9268,144.37,144.33,24.2491]
[1728355335042,6.9268,144.37,144.33,17.3207]
[1728355335257,17.3111,144.42,144.32,22.327]
[1728355335258,6.9273,144.36,144.32,22.327]
[1728355335575,6.9267,144.37,144.33,6.9284]
[1728355335748,44.027864,144.41,144.35,12.88057649]
[1728355335940,6.9248,144.41,144.37,6.9266]
[1728355336271,6.9248,144.41,144.36,25.62954741]
[1728355336967,6.9248,144.41,144.36,24.2443]
[1728355339154,0.12549,144.41,144.36,17.3174]
[1728355339464,6.9258,144.39,144.36,17.3174]
[1728355339639,6.9265,144.38,144.33,24.249]
[1728355339849,6.9265,144.38,144.34,19.80857649]
[1728355340043,0.12549,144.4,144.33,17.3208]
[1728355340370,6.9258,144.39,144.34,19.80817649]
[1728355340742,6.9258,144.39,144.34,6.9276]
[1728355341060,44.027864,144.4,144.35,1.38529484]
[1728355341061,7.17628,144.4,144.35,1.38529484]
[1728355341272,6.9253,144.4,144.36,6.927]
[1728355341449,32.8334,144.44,144.37,1.38514439]
[1728355341450,6.9248,144.41,144.37,1.38514439]
[1728355341648,6.9248,144.41,144.37,8.31164439]
[1728355341844,6.9248,144.41,144.36,19.80747649]
[1728355342662,6.9248,144.41,144.37,6.9265]
[1728355343449,6.9248,144.41,144.36,12.88057649]
[1728355343649,6.9248,144.41,144.36,19.80747649]
[1728355346549,20.12549,144.44,144.38,12.88057649]
[1728355346748,6.924,144.43,144.39,8.31037547]
[1728355347051,6.9234,144.44,144.4,1.38483998]
[1728355347254,6.9234,144.44,144.39,6.9255]
[1728355347756,6.9237,144.43,144.39,6.9255]
[1728355350172,6.9234,144.44,144.4,6.925]
[1728355350472,6.9234,144.44,144.4,19.80557649]
[1728355351778,24.027864,144.46,144.39,17.3137]
[1728355351958,6.9243,144.42,144.39,17.3137]
[1728355352501,6.9244,144.42,144.38,6.9259]
[1728355352656,6.9244,144.42,144.38,19.80647649]
[1728355354670,6.9239,144.43,144.38,19.80647649]
[1728355355172,6.9239,144.43,144.38,12.88057649]
[1728355355396,6.9233,144.44,144.38,30.19567649]
[1728355355678,6.9233,144.44,144.4,6.9251]
[1728355358262,6.9228,144.45,144.41,8.30945116]
[1728355358463,6.9228,144.45,144.4,37.11807649]
[1728355358778,20.0,144.46,144.4,37.11807649]
[1728355358967,6.9233,144.44,144.4,37.11807649]
[1728355367461,6.9233,144.44,144.4,30.19307649]
[1728355367884,0.25098,144.47,144.41,1.38472749]
[1728355368073,6.9219,144.47,144.42,35.14307649]
[1728355368281,6.9215,144.48,144.44,12.88057649]
[1728355368480,15.3643,144.52,144.44,12.88057649]
[1728355368686,15.3643,144.52,144.45,1.38443449]
[1728355368889,15.3643,144.52,144.44,12.88057649]
[1728355369779,6.9217,144.48,144.44,12.88057649]
[1728355374380,0.12549,144.5,144.42,32.6486]
[1728355374583,6.9228,144.45,144.42,32.6486]
[1728355375183,6.9228,144.45,144.42,15.3384]
[1728355375791,17.3029,144.49,144.42,15.3384]
[1728355375792,6.9224,144.46,144.42,15.3384]
[1728355376281,6.9224,144.46,144.43,1.38457666]
[1728355376466,17.3029,144.49,144.43,1.38457666]
[1728355376676,6.9219,144.47,144.43,19.80427649]
[1728355376970,26.9213,144.49,144.45,6.9227]
[1728355377184,26.9213,144.49,144.43,37.11277649]
[1728355377185,20.0,144.49,144.43,37.11277649]
[1728355377375,6.9219,144.47,144.43,30.18917649]
[1728355378389,6.9227,144.46,144.42,15.3384]
[1728355380506,24.027864,144.48,144.42,15.3384]
[1728355381009,24.027864,144.48,144.43,1.3845796]
[1728355381297,6.9224,144.46,144.42,35.14317649]
[1728355381591,6.9219,144.47,144.43,1.38446759]
[1728355381779,6.9219,144.47,144.42,35.14317649]
[1728355383078,24.027864,144.48,144.42,15.3384]
[1728355383998,6.9233,144.44,144.42,15.3384]
[1728355384294,6.9229,144.45,144.42,15.3384]
[1728355384874,6.9229,144.45,144.42,16.72301767]
[1728355385094,6.9223,144.46,144.42,28.21897649]
[1728355385397,0.25098,144.48,144.42,15.3384]
[1728355385697,6.9228,144.45,144.42,15.3384]
[1728355388887,41.331664,144.48,144.42,15.3384]
[1728355389088,41.331664,144.48,144.31,52.01752749]
[1728355389089,24.027864,144.46,144.38,16.0541]
[1728355389777,6.9244,144.42,144.38,16.0541]
[1728355389978,6.9244,144.42,144.38,22.9802]
[1728355392079,6.9233,144.44,144.39,21.19064991]
[1728355392281,6.9233,144.44,144.4,6.9251]
[1728355395305,0.25098,144.46,144.4,6.9251]
[1728355395603,6.9229,144.45,144.41,8.30915959]
[1728355396402,6.9224,144.46,144.41,14.26533608]
[1728355396607,6.9224,144.46,144.42,14.51373782]
[1728355396792,7.17155036,144.5,144.44,6.9231]
[1728355396991,7.17155036,144.5,144.44,23.69242126]
[1728355397299,17.2985,144.53,144.44,22.308]
[1728355397300,6.9214,144.48,144.44,22.308]
[1728355397695,6.9219,144.47,144.44,15.3849]
[1728355403493,6.9219,144.47,144.44,16.7693355]
[1728355403695,6.9219,144.47,144.44,15.3849]
[1728355404911,7.17045881,144.54,144.44,15.3849]
[1728355405092,8.11864184,144.55,144.5,19.80077649]
[1728355405292,51.1962,144.6,144.5,19.80077649]
[1728355405293,68.4859,144.6,144.5,19.80077649]
[1728355405503,7.1697827,144.59,144.5,19.80077649]
[1728355405711,6.9181,144.55,144.51,1.38370355]
[1728355406004,6.9181,144.55,144.5,19.40307649]
[1728355406211,6.9181,144.55,144.51,6.9199]
[1728355406708,6.917,144.57,144.52,19.79997649]
[1728355406915,6.917,144.57,144.53,1.38355813]
[1728355407419,6.917,144.57,144.52,19.79997649]
[1728355407714,6.9177,144.56,144.52,12.88057649]
[1728355407915,17.2897,144.6,144.52,19.79997649]
[1728355408128,6.9158,144.6,144.55,6.9179]
[1728355408419,6.9161,144.59,144.56,1.38333087]
[1728355409103,46.83954235,144.64,144.55,6.9177]
[1728355409104,6.9156,144.6,144.55,6.9177]
[1728355409309,40.38534235,144.64,144.56,12.88057649]
[1728355409499,33.2097,144.64,144.56,14.2637022]
[1728355409693,20.40536025,144.65,144.56,14.2637022]
[1728355409899,6.9151,144.62,144.57,6.9169]
[1728355410100,6.9151,144.62,144.58,14.2635796]
[1728355410620,6.9151,144.61,144.58,12.88057649]
[1728355410996,6.9151,144.61,144.56,12.88057649]
[1728355411197,6.9151,144.61,144.56,19.79797649]
[1728355412314,6.9157,144.6,144.56,12.88057649]
[1728355413491,17.53478,144.65,144.56,12.88057649]
[1728355413818,24.027864,144.62,144.55,6.321]
[1728355413996,6.9162,144.59,144.55,6.321]
[1728355414696,6.9162,144.59,144.55,13.2389]
[1728355415329,0.25098,144.62,144.56,12.88057649]
[1728355415498,6.9151,144.61,144.56,21.1811193]
[1728355415997,6.9151,144.61,144.56,19.79797649]
[1728355416193,0.12549,144.65,144.58,12.88057649]
[1728355416424,6.9142,144.63,144.59,1.38298314]
[1728355417303,7.87225991,144.69,144.59,1.38298314]
[1728355417511,7.87225991,144.69,144.6,12.88057649]
[1728355417512,17.2788,144.69,144.6,12.88057649]
[1728355417712,20.0,144.67,144.58,37.08777649]
[1728355417902,20.0,144.66,144.58,12.88057649]
[1728355418102,6.9158,144.6,144.58,12.88057649]
[1728355418306,6.9146,144.63,144.59,1.3830638]
[1728355418510,6.9146,144.63,144.58,19.79697649]
[1728355418711,6.9146,144.63,144.59,1.38286285]
[1728355418914,6.9146,144.63,144.58,19.79697649]
[1728355419807,6.9146,144.63,144.59,1.38286311]
[1728355419999,6.9146,144.63,144.58,19.79697649]
[1728355420413,20.0,144.66,144.59,1.38286206]
[1728355420708,6.9138,144.64,144.6,16.2496]
[1728355420909,6.9138,144.64,144.61,1.3828323]
[1728355421615,6.9142,144.63,144.6,16.2496]
[1728355422624,6.9142,144.63,144.61,1.3828392]
[1728355425221,6.9142,144.63,144.6,16.2496]
[1728355427109,24.027864,144.66,144.6,16.2496]
[1728355427303,6.9151,144.61,144.6,16.2496]
[1728355430800,6.9164,144.59,144.56,15.7035]
[1728355431412,24.027864,144.63,144.57,1.38319889]
[1728355431615,6.9157,144.6,144.57,1.38319889]
[1728355431829,6.9154,144.61,144.56,35.50147649]
[1728355432810,0.25098,144.63,144.56,28.58407649]
[1728355433030,6.9161,144.59,144.56,28.58407649]
[1728355434236,6.9161,144.59,144.57,1.38319814]
[1728355435442,6.9157,144.6,144.56,35.50157649]
[1728355435826,6.9157,144.6,144.57,1.38318143]
[1728355436228,6.9157,144.6,144.56,35.50157649]
[1728355438322,6.9157,144.6,144.57,1.3831786]
[1728355439831,6.9151,144.61,144.57,8.3001786]
[1728355440424,6.9147,144.62,144.58,6.9165]
[1728355440740,6.9147,144.62,144.59,1.38300776]
[1728355440945,0.25098,144.63,144.58,12.88057649]
[1728355441247,6.9153,144.61,144.59,1.38303823]
[1728355441424,6.9153,144.61,144.58,14.26361565]
[1728355442749,6.9148,144.62,144.58,21.18001565]
[1728355443719,7.1784536,144.67,144.6,12.88057649]
[1728355443921,18.47783878,144.7,144.61,1.3827021]
[1728355443922,17.2779,144.7,144.61,1.3827021]
[1728355444119,6.9146,144.63,144.6,6.1176]
[1728355445649,6.9138,144.64,144.6,13.0331]
[1728355445848,6.9138,144.64,144.61,1.38281699]
[1728355446951,6.9133,144.65,144.62,1.38281729]
[1728355448638,0.25098,144.67,144.63,12.88057649]
[1728355448639,0.12549,144.67,144.63,12.88057649]
[1728355448951,6.913,144.66,144.63,12.88057649]
[1728355449653,0.12549,144.67,144.61,28.91407649]
[1728355449843,6.914,144.64,144.61,28.91407649]
[1728355450553,6.9133,144.65,144.61,28.91407649]